fUST/lending_fUST_20250604
["ID","MTS","AMOUNT","RATE_DAILY","PERIOD"]
[364131388,1749013840462,-440.0,0.00020264,2]
[364131391,1749013840471,-440.0,0.00020264,2]
[364131394,1749013840483,-440.0,0.00020264,2]
[364131397,1749013840492,-440.0,0.00020264,2]
[364131400,1749013840501,-440.0,0.00020264,2]
[364131402,1749013840511,-420.0,0.00020264,2]
[364131405,1749013840521,-440.0,0.00020264,2]
[364131408,1749013840530,-440.0,0.00020264,2]
[364131410,1749013840539,-440.0,0.00020264,2]
[364131413,1749013840549,-326.36575674,0.00020264,2]
[364131417,1749013840559,-447.97,0.00020264,2]
[364131420,1749013840570,-426.93167448,0.00020265,2]
[364131424,1749013840580,-469.19825307,0.00020265,2]
[364131426,1749013840589,-500.0,0.00020265,2]
[364131429,1749013840598,-420.0,0.00020265,2]
[364131432,1749013840608,-440.0,0.00020265,2]
[364131435,1749013840617,-440.0,0.00020265,2]
[364131437,1749013840627,-420.0,0.00020265,2]
[364131440,1749013840636,-440.0,0.00020265,2]
[364131443,1749013840647,-440.0,0.00020265,2]
[364131446,1749013840657,-420.0,0.00020265,2]
[364131449,1749013840666,-440.0,0.00020265,2]
[364131453,1749013840676,-440.0,0.00020265,2]
[364131456,1749013840685,-440.0,0.00020265,2]
[364131459,1749013840695,-440.0,0.00020265,2]
[364131462,1749013840704,-440.0,0.00020265,2]
[364131464,1749013840714,-440.0,0.00020265,2]
[364131467,1749013840723,-420.0,0.00020265,2]
[364131470,1749013840733,-440.0,0.00020265,2]
[364131472,1749013840742,-464.3542191,0.00020265,2]
[364131473,1749013840751,-440.0,0.00020265,2]
[364131475,1749013840761,-440.0,0.00020265,2]
[364131477,1749013840770,-440.0,0.00020265,2]
[364131480,1749013840780,-500.0,0.00020265,2]
[364131482,1749013840789,-440.0,0.00020265,2]
[364131486,1749013840800,-440.0,0.00020265,2]
[364131489,1749013840809,-420.0,0.00020266,2]
[364131492,1749013840819,-461.994809,0.00020266,2]
[364131495,1749013840828,-430.26183374,0.00020266,2]
[364131498,1749013840837,-440.0,0.00020266,2]
[364131501,1749013840847,-440.0,0.00020266,2]
[364131504,1749013840856,-420.0,0.00020266,2]
[364131507,1749013840867,-440.0,0.00020266,2]
[364131510,1749013840877,-430.10416159,0.00020266,2]
[364131513,1749013840886,-420.41370067,0.00020266,2]
[364131516,1749013840896,-420.0,0.00020266,2]
[364131519,1749013840906,-420.0,0.00020266,2]
[364131521,1749013840915,-440.0,0.00020266,2]
[364131524,1749013840924,-440.0,0.00020266,2]
[364131526,1749013840934,-440.0,0.00020266,2]
[364131529,1749013840944,-440.0,0.00020266,2]
[364131532,1749013840953,-209.54328878,0.00020266,2]
[364131535,1749013840962,-416.25816542,0.00020266,2]
[364131538,1749013840972,-420.0,0.00020266,2]
[364131541,1749013840981,-440.0,0.00020266,2]
[364131544,1749013840991,-364.58291012,0.00020266,2]
[364131546,1749013841000,-197.5276661,0.00020266,2]
[364131549,1749013841010,-440.0,0.00020266,2]
[364131552,1749013841020,-440.0,0.00020266,2]
[364131555,1749013841029,-426.47297212,0.00020266,2]
[364131558,1749013841039,-440.0,0.00020266,2]
[364131561,1749013841048,-440.0,0.00020266,2]
[364131563,1749013841057,-454.77618739,0.00020266,2]
[364131566,1749013841066,-440.0,0.00020266,2]
[364131569,1749013841075,-440.0,0.00020266,2]
[364131572,1749013841085,-420.0,0.00020266,2]
[364131575,1749013841094,-440.0,0.00020266,2]
[364131578,1749013841104,-486.02317243,0.00020266,2]
[364131581,1749013841113,-440.0,0.00020266,2]
[364131584,1749013841123,-500.0,0.00020266,2]
[364131587,1749013841133,-440.0,0.00020266,2]
[364131590,1749013841142,-415.0,0.00020266,2]
[364131593,1749013841152,-420.0,0.00020266,2]
[364131596,1749013841161,-440.0,0.00020266,2]
[364131599,1749013841171,-471.34448504,0.00020266,2]
[364131602,1749013841181,-431.14156027,0.00020266,2]
[364131605,1749013841191,-440.0,0.00020266,2]
[364131607,1749013841201,-424.89771691,0.00020267,2]
[364131610,1749013841211,-440.0,0.00020267,2]
[364131613,1749013841221,-420.0,0.00020267,2]
[364131616,1749013841230,-440.0,0.00020267,2]
[364131619,1749013841240,-322.51900637,0.00020267,2]
[364131622,1749013841249,-440.0,0.00020267,2]
[364131625,1749013841259,-420.0,0.00020267,2]
[364131628,1749013841268,-440.0,0.00020267,2]
[364131631,1749013841278,-440.0,0.00020267,2]
[364131634,1749013841287,-426.18303345,0.00020267,2]
[364131637,1749013841297,-1000.0,0.00020331,2]
[364131640,1749013841306,-440.0,0.0002041,2]
[364131643,1749013841315,-699.34783759,0.00020417,3]
[364131646,1749013841325,-440.0,0.00020433,2]
[364131649,1749013841334,-440.0,0.00020433,2]
[364131652,1749013841344,-440.0,0.00020433,2]
[364131655,1749013841353,-440.0,0.00020433,2]
[364131657,1749013841362,-440.0,0.00020433,2]
[364131660,1749013841374,-440.0,0.00020435,2]
[364131663,1749013841383,-225.46,0.00020435,2]
[364131666,1749013841392,-554.15,0.00020435,2]
[364131669,1749013841401,-440.0,0.00020435,2]
[364131672,1749013841411,-400.0,0.00020435,2]
[364131675,1749013841420,-440.0,0.00020435,2]
[364131678,1749013841429,-400.0,0.00020435,2]
[364131681,1749013841442,-400.0,0.00020435,2]
[364131684,1749013841452,-440.0,0.00020435,2]
[364131687,1749013841461,-440.0,0.00020435,2]
[364131690,1749013841470,-246.94,0.00020435,2]
[364131693,1749013841480,-440.0,0.00020435,2]
[364131696,1749013841489,-400.0,0.00020435,2]
[364131699,1749013841498,-440.0,0.00020435,2]
[364131702,1749013841507,-440.0,0.00020435,2]
[364131705,1749013841517,-440.0,0.00020435,2]
[364131708,1749013841526,-440.0,0.00020435,2]
[364131710,1749013841535,-440.0,0.00020435,2]
[364131714,1749013841545,-440.0,0.00020435,2]
[364131717,1749013841554,-427.2650657,0.00020436,2]
[364131719,1749013841564,-440.0,0.00020436,2]
[364131723,1749013841573,-440.0,0.00020436,2]
[364131726,1749013841582,-410.99535333,0.00020436,2]
[364131728,1749013841592,-440.0,0.00020436,2]
[364131731,1749013841601,-440.0,0.00020436,2]
[364131735,1749013841610,-440.0,0.00020436,2]
[364131737,1749013841621,-440.0,0.00020436,2]
[364131740,1749013841631,-400.0,0.00020436,2]
[364131743,1749013841641,-440.0,0.00020436,2]
[364131746,1749013841652,-440.0,0.00020436,2]
[364131749,1749013841661,-440.0,0.00020436,2]
[364131752,1749013841671,-440.0,0.00020436,2]
[364131755,1749013841681,-511.46750223,0.00020507,2]
[364131757,1749013841692,-440.0,0.00020538,2]
[364131759,1749013841701,-302.88,0.00020538,2]
[364131761,1749013841711,-440.0,0.00020538,2]
[364131763,1749013841720,-440.0,0.00020538,2]
[364131765,1749013841730,-188.57,0.00020538,2]
[364131768,1749013841739,-440.0,0.00020538,2]
[364131771,1749013841748,-440.0,0.00020538,2]
[364131774,1749013841758,-440.0,0.00020538,2]
[364131777,1749013841767,-440.0,0.00020538,2]
[364131779,1749013841777,-447.97,0.00020538,2]
[364131782,1749013841786,-500.0,0.00020539,2]
[364131785,1749013841796,-440.0,0.00020539,2]
[364131788,1749013841805,-468.95,0.00020539,2]
[364131791,1749013841815,-440.0,0.00020539,2]
[364131794,1749013841824,-440.0,0.00020539,2]
[364131798,1749013841834,-440.0,0.00020539,2]
[364131800,1749013841843,-440.0,0.00020539,2]
[364131804,1749013841853,-440.0,0.00020539,2]
[364131807,1749013841863,-440.0,0.00020539,2]
[364131810,1749013841873,-440.0,0.00020539,2]
[364131813,1749013841882,-421.04449479,0.00020539,2]
[364131816,1749013841892,-440.0,0.00020539,2]
[364131819,1749013841901,-440.0,0.00020539,2]
[364131822,1749013841910,-440.0,0.00020539,2]
[364131825,1749013841920,-440.0,0.00020539,2]
[364131828,1749013841929,-440.0,0.00020539,2]
[364131831,1749013841940,-502.8634833,0.00020539,2]
[364131834,1749013841949,-410.0,0.0002054,2]
[364131837,1749013841958,-440.0,0.0002054,2]
[364131840,1749013841968,-410.0,0.0002054,2]
[364131843,1749013841977,-431.50363553,0.0002054,2]
[364131846,1749013841987,-440.0,0.0002054,2]
[364131849,1749013841996,-446.72,0.0002054,2]
[364131852,1749013842005,-440.0,0.0002054,2]
[364131855,1749013842014,-440.0,0.0002054,2]
[364131858,1749013842023,-440.0,0.0002054,2]
[364131861,1749013842032,-155.15902726,0.0002054,2]
[364131864,1749013842042,-389.41407832,0.0002054,2]
[364131867,1749013842051,-440.0,0.0002054,2]
[364131870,1749013842060,-425.14670364,0.0002054,2]
[364131873,1749013842070,-415.30695927,0.0002054,2]
[364131876,1749013842079,-410.0,0.0002054,2]
[364131879,1749013842089,-440.0,0.0002054,2]
[364131882,1749013842098,-500.0,0.0002054,2]
[364131885,1749013842108,-438.29222238,0.0002054,2]
[364131888,1749013842118,-481.22688919,0.0002054,2]
[364131891,1749013842128,-500.0,0.0002054,2]
[364131894,1749013842137,-440.0,0.0002054,2]
[364131897,1749013842146,-182.86,0.00020541,2]
[364131900,1749013842156,-481.09436803,0.00020541,2]
[364131903,1749013842166,-440.0,0.00020541,2]
[364131906,1749013842175,-440.0,0.00020541,2]
[364131908,1749013842186,-499.98520508,0.00020541,2]
[364131911,1749013842195,-699.34783759,0.0002059,3]
[364131914,1749013842204,-440.0,0.00020684,2]
[364131917,1749013842214,-440.0,0.00020707,2]
[364131920,1749013842223,-440.0,0.00020707,2]
[364131923,1749013842232,-440.0,0.00020707,2]
[364131926,1749013842242,-440.0,0.00020707,2]
[364131929,1749013842251,-397.08,0.00020709,2]
[364131932,1749013842261,-554.15,0.00020709,2]
[364131935,1749013842270,-440.0,0.00020709,2]
[364131938,1749013842279,-440.0,0.00020709,2]
[364131941,1749013842289,-440.0,0.00020709,2]
[364131944,1749013842298,-390.0,0.00020709,2]
[364131947,1749013842306,-390.0,0.00020709,2]
[364131950,1749013842314,-440.0,0.00020709,2]
[364131953,1749013842323,-440.0,0.00020709,2]
[364131956,1749013842331,-440.0,0.00020709,2]
[364131959,1749013842339,-390.0,0.00020709,2]
[364131961,1749013842346,-196.04,0.00020709,2]
[364131964,1749013842354,-429.55,0.00020709,2]
[364131968,1749013842362,-390.0,0.0002071,2]
[364131971,1749013842372,-490.18,0.0002071,2]
[364131973,1749013842382,-440.0,0.0002071,2]
[364131976,1749013842391,-440.0,0.0002071,2]
[364131979,1749013842401,-440.0,0.0002071,2]
[364131982,1749013842410,-390.0,0.0002071,2]
[364131986,1749013842420,-390.0,0.0002071,2]
[364131988,1749013842430,-390.0,0.0002071,2]
[364131991,1749013842443,-440.0,0.0002071,2]
[364131995,1749013842453,-440.0,0.0002071,2]
[364131998,1749013842462,-699.34783759,0.00020762,3]
[364132001,1749013842472,-440.0,0.00020812,2]
[364132004,1749013842484,-440.0,0.00020812,2]
[364132007,1749013842493,-440.0,0.00020812,2]
[364132010,1749013842504,-440.0,0.00020812,2]
[364132012,1749013842516,-440.0,0.00020812,2]
[364132014,1749013842527,-494.09,0.00020812,2]
[364132016,1749013842542,-440.0,0.00020812,2]
[364132018,1749013842553,-447.97,0.00020812,2]
[364132020,1749013842562,-500.0,0.00020813,2]
[364132022,1749013842571,-440.0,0.00020813,2]
[364132024,1749013842581,-400.0,0.00020813,2]
[364132026,1749013842591,-397.24,0.00020813,2]
[364132028,1749013842602,-421.37512525,0.00020813,2]
[364132030,1749013842612,-412.48814772,0.00020813,2]
[364132032,1749013842623,-440.0,0.00020813,2]
[364132034,1749013842633,-440.0,0.00020813,2]
[364132036,1749013842643,-408.72586793,0.00020813,2]
[364132038,1749013842653,-440.0,0.00020813,2]
[364132040,1749013842662,-440.0,0.00020813,2]
[364132042,1749013842672,-400.0,0.00020813,2]
[364132044,1749013842682,-440.0,0.00020813,2]
[364132046,1749013842691,-189.78709743,0.00020813,2]
[364132048,1749013842701,-400.0,0.00020814,2]
[364132050,1749013842710,-400.0,0.00020814,2]
[364132052,1749013842719,-440.0,0.00020814,2]
[364132054,1749013842729,-182.73141729,0.00020814,2]
[364132056,1749013842738,-440.0,0.00020814,2]
[364132058,1749013842748,-416.13870317,0.00020814,2]
[364132060,1749013842759,-502.54747921,0.00020814,2]
[364132061,1749013842769,-500.0,0.00020814,2]
[364132062,1749013842779,-440.0,0.00020814,2]
[364132063,1749013842788,-440.0,0.00020815,2]
[364132064,1749013842797,-440.0,0.00020815,2]
[364132065,1749013842806,-699.34783759,0.00020934,4]
[364132066,1749013842815,-440.0,0.00020958,2]
[364132067,1749013842824,-375.42549935,0.00020981,2]
[364132068,1749013842834,-440.0,0.00020981,2]
[364132069,1749013842843,-380.0,0.00020981,2]
[364132070,1749013842852,-380.0,0.00020981,2]
[364132071,1749013842861,-554.15,0.00020983,2]
[364132072,1749013842871,-440.0,0.00020983,2]
[364132073,1749013842881,-380.0,0.00020983,2]
[364132074,1749013842890,-250.67,0.00020983,2]
[364132076,1749013842900,-380.0,0.00020983,2]
[364132078,1749013842910,-380.0,0.00020983,2]
[364132080,1749013842919,-380.0,0.00020983,2]
[364132082,1749013842928,-380.0,0.00020984,2]
[364132084,1749013842937,-380.0,0.00020984,2]
[364132086,1749013842946,-380.0,0.00020984,2]
[364132088,1749013842956,-380.0,0.00020984,2]
[364132090,1749013842965,-408.0,0.00020984,2]
[364132091,1749013842975,-160.46588293,0.00021,2]
[364132093,1749013842984,-27171.35289492,0.00021,3]
[364132095,1749013842994,-12664.64374179,0.00021,3]
[364132097,1749013843004,-420.0,0.00021046,2]
[364132099,1749013843014,-440.0,0.00021086,2]
[364132101,1749013843023,-390.0,0.00021086,2]
[364132103,1749013843033,-390.0,0.00021086,2]
[364132105,1749013843042,-440.0,0.00021086,2]
[364132107,1749013843051,-500.0,0.00021086,2]
[364132124,1749013843162,-500.0,0.00021086,2]
[364132127,1749013843173,-500.0,0.00021086,2]
[364132131,1749013843183,-579.98799781,0.00021086,2]
[364132132,1749013843193,-500.0,0.00021086,2]
[364132134,1749013843202,-299.87997802,0.00021086,2]
[364132136,1749013843213,-440.0,0.00021086,2]
[364132139,1749013843223,-440.0,0.00021086,2]
[364132140,1749013843232,-447.97,0.00021086,2]
[364132142,1749013843242,-7338.76354305,0.00021087,3]
[364132144,1749013843252,-530.10586109,0.00021087,2]
[364132147,1749013843262,-390.0,0.00021087,2]
[364132148,1749013843271,-390.0,0.00021087,2]
[364132150,1749013843281,-390.0,0.00021087,2]
[364132154,1749013843290,-390.0,0.00021087,2]
[364132156,1749013843299,-419.33422458,0.00021087,2]
[364132158,1749013843308,-400.14897986,0.00021087,2]
[364132161,1749013843318,-329.53613733,0.00021088,2]
[364132162,1749013843327,-390.0,0.00021088,2]
[364132164,1749013843336,-390.0,0.00021088,2]
[364132167,1749013843346,-390.0,0.00021089,2]
[364132168,1749013843357,-394.70235338,0.00021089,2]
[364132170,1749013843367,-6801.69841477,0.000211,2]
[364132270,1749013844322,-440.0,0.00020136,2]
[364132272,1749013844332,-440.0,0.0002041,2]
[364132274,1749013844341,-306.03064093,0.00020684,2]
[364132276,1749013844350,-440.0,0.00020707,2]
[364132278,1749013844359,-380.0,0.00020981,2]
[364132280,1749013844369,-500.0,0.00020999,2]
[364132281,1749013844378,-500.0,0.00020999,2]
[364132284,1749013844389,-500.0,0.00020999,2]
[364132286,1749013844398,-500.0,0.00020999,2]
[364132288,1749013844408,-500.0,0.00020999,2]
[364132290,1749013844418,-500.0,0.00020999,2]
[364132292,1749013844427,-347.45859477,0.00020999,2]
[364132293,1749013844442,-500.0,0.00020999,2]
[364132296,1749013844452,-500.0,0.00020999,2]
[364132297,1749013844461,-500.0,0.00020999,2]
[364132299,1749013844471,-411.90536554,0.00020999,2]
[364132301,1749013844481,-500.0,0.00020999,2]
[364132303,1749013844490,-500.0,0.00020999,2]
[364132305,1749013844500,-500.0,0.00020999,2]
[364132308,1749013844510,-500.0,0.00020999,2]
[364132309,1749013844520,-500.0,0.00020999,2]
[364132312,1749013844530,-433.85957504,0.00020999,2]
[364132313,1749013844539,-500.0,0.00020999,2]
[364132315,1749013844549,-500.0,0.00020999,2]
[364132318,1749013844559,-500.0,0.00020999,2]
[364132320,1749013844568,-500.0,0.00020999,2]
[364132322,1749013844578,-500.0,0.00020999,2]
[364132324,1749013844587,-500.0,0.00020999,2]
[364132326,1749013844596,-500.0,0.00020999,2]
[364132328,1749013844606,-500.0,0.00020999,2]
[364132330,1749013844615,-500.0,0.00020999,2]
[364132332,1749013844625,-500.0,0.00020999,2]
[364132334,1749013844634,-500.0,0.00020999,2]
[364132336,1749013844643,-500.0,0.00020999,2]
[364132337,1749013844652,-397.87693167,0.00020999,2]
[364132339,1749013844662,-250.0,0.00020999,2]
[364132341,1749013844671,-321.57047279,0.00020999,2]
[364132343,1749013844681,-161.72547495,0.00020999,2]
[364132345,1749013844690,-500.0,0.00020999,2]
[364132347,1749013844700,-500.0,0.00020999,2]
[364132349,1749013844709,-500.0,0.00020999,2]
[364132351,1749013844718,-500.0,0.00020999,2]
[364132353,1749013844728,-500.0,0.00020999,2]
[364132355,1749013844738,-500.0,0.00020999,2]
[364132358,1749013844749,-500.0,0.00020999,2]
[364132360,1749013844759,-500.0,0.00020999,2]
[364132362,1749013844768,-500.0,0.00020999,2]
[364132363,1749013844777,-500.0,0.00020999,2]
[364132365,1749013844786,-500.0,0.00020999,2]
[364132367,1749013844796,-500.0,0.00020999,2]
[364132369,1749013844805,-500.0,0.00020999,2]
[364132372,1749013844814,-500.0,0.00020999,2]
[364132373,1749013844823,-500.0,0.00020999,2]
[364132375,1749013844833,-500.0,0.00020999,2]
[364132377,1749013844843,-500.0,0.00020999,2]
[364132379,1749013844852,-500.0,0.00020999,2]
[364132381,1749013844861,-500.0,0.00020999,2]
[364132383,1749013844870,-500.0,0.00020999,2]
[364132385,1749013844880,-500.0,0.00020999,2]
[364132387,1749013844889,-500.0,0.00020999,2]
[364132389,1749013844898,-500.0,0.00020999,2]
[364132391,1749013844908,-500.0,0.00020999,2]
[364132393,1749013844917,-500.0,0.00020999,2]
[364132395,1749013844926,-500.0,0.00020999,2]
[364132397,1749013844937,-500.0,0.00020999,2]
[364132399,1749013844947,-300.0,0.00020999,2]
[364132401,1749013844956,-500.0,0.00020999,2]
[364132403,1749013844967,-500.0,0.00020999,2]
[364132406,1749013844976,-500.0,0.00020999,2]
[364132407,1749013844985,-500.0,0.00020999,2]
[364132410,1749013844995,-177.7255394,0.00020999,2]
[364132411,1749013845005,-500.0,0.00020999,2]
[364132413,1749013845015,-57843.82498963,0.000211,2]
[364132415,1749013845024,-12100.79338438,0.000211,2]
[364132557,1749013846819,-2495.56342047,0.000211,2]
[364133722,1749013859254,500.0,0.00022087,120]
[364133791,1749013860031,500.0,0.00022087,120]
[364133857,1749013860805,500.0,0.00022087,120]
[364133923,1749013861582,500.0,0.00022087,120]
[364133982,1749013862372,500.0,0.00022087,120]
[364134025,1749013863258,500.0,0.00022087,120]
[364134097,1749013864025,500.0,0.00022087,120]
[364134177,1749013864841,500.0,0.00022087,120]
[364134257,1749013865716,500.0,0.00022087,120]
[364134333,1749013866464,500.0,0.00022087,120]
[364134413,1749013867245,500.0,0.00022087,120]
[364134444,1749013868010,500.0,0.00022087,120]
[364134445,1749013868783,500.0,0.00022087,120]
[364134517,1749013869567,500.0,0.00022087,120]
[364134632,1749013870828,500.0,0.00022087,120]
[364134745,1749013871971,500.0,0.00022087,120]
[364134810,1749013872646,500.0,0.00022087,120]
[364134892,1749013873445,500.0,0.00022087,120]
[364134974,1749013874221,500.0,0.00022087,120]
[364135056,1749013875000,500.0,0.00022087,120]
[364135135,1749013875779,500.0,0.00022087,120]
[364135201,1749013876558,500.0,0.00022087,120]
[364135281,1749013877338,500.0,0.00022087,120]
[364135336,1749013878113,500.0,0.00022087,120]
[364135400,1749013878909,500.0,0.00022087,120]
[364135478,1749013879679,293.27,0.00022087,120]
[364135797,1749013892262,150.5,0.0002328,120]
[364135798,1749013892738,150.5,0.0002327,120]
[364135799,1749013893206,285.4,0.0002326,120]
[364135804,1749013929436,164.40530345,0.00024135,120]
[364135829,1749014223486,549.14385,0.00024,120]
[364135832,1749014250745,200.0,0.00023084,120]
[364135840,1749014346901,302.0,0.00024,120]
[364135842,1749014446730,866.87,0.00024658,120]
[364135875,1749014787994,344.92,0.0001551,2]
[364135892,1749014870159,192.34089021,0.000246,120]
[364135893,1749014894004,267.13140078,0.00024127,120]
[364135894,1749014896377,543.23824061,0.00024127,120]
[364135900,1749014902778,911.83205643,0.00024127,120]
[364135901,1749014910715,841.05281369,0.00024127,120]
[364135902,1749014911767,685.2628485,0.00024127,120]
[364135903,1749014913530,240.82074905,0.00024127,120]
[364135904,1749014914001,399.70159267,0.0002,120]
[364135905,1749014914343,241.07087245,0.00024127,120]
[364135906,1749014914763,969.49823269,0.00024127,120]
[364135907,1749014915602,835.33058236,0.00024127,120]
[364135908,1749014916322,1095.74236148,0.00024127,120]
[364135909,1749014916875,355.19941203,0.00024108,120]
[364135910,1749014918774,1018.5183109,0.00024127,120]
[364135911,1749014919032,1003.04497979,0.00024127,120]
[364135912,1749014919559,462.31144274,0.00024127,120]
[364135913,1749014919591,288.44321248,0.00024127,120]
[364135914,1749014919661,1104.12487418,0.00024127,120]
[364135915,1749014920416,258.64498855,0.00024127,120]
[364135916,1749014920740,424.67266398,0.00024127,120]
[364135917,1749014920771,242.35979101,0.00024127,120]
[364135918,1749014920819,622.23156096,0.00024127,120]
[364135919,1749014920894,214.95291397,0.00024127,120]
[364135920,1749014921969,315.56925753,0.00024127,120]
[364135921,1749014922263,202.85399986,0.00024127,120]
[364135922,1749014923444,474.94540592,0.00024127,120]
[364135923,1749014923582,487.9402149,0.00024127,120]
[364135924,1749014923766,217.69134518,0.0001536,120]
[364135925,1749014924564,532.01497076,0.00024127,120]
[364135928,1749014925100,218.41506792,0.00024127,120]
[364135931,1749014925481,200.8739904,0.00024127,120]
[364135932,1749014925552,1162.03050522,0.00022,120]
[364135933,1749014925997,600.34847768,0.00024127,120]
[364135979,1749014990541,859.4713681,0.00024127,120]
[364136002,1749015031758,-5000.0,0.00017522,2]
[364136003,1749015031769,-151.10311182,0.00017699,2]
[364136004,1749015031778,-6.08916751,0.0001843,2]
[364136070,1749015037711,-256.83035349,0.0001843,2]
[364136072,1749015037721,-259.495555,0.00018736,2]
[364136074,1749015037731,-565.64079896,0.000189,2]
[364136076,1749015037740,-164.76934037,0.00019001,2]
[364136078,1749015037750,-565.64079885,0.00019107,2]
[364136080,1749015037759,-167.946401,0.00019178,2]
[364136082,1749015037768,-300.0,0.00019297,2]
[364136084,1749015037778,-565.64079885,0.00019314,2]
[364136086,1749015037788,-300.0,0.00019314,2]
[364136088,1749015037797,-429.98034628,0.00019315,2]
[364136091,1749015037809,-0.01965372,0.00019315,2]
[364136093,1749015037818,-430.0,0.00019315,2]
[364136095,1749015037827,-440.0,0.00019315,2]
[364136097,1749015037837,-440.0,0.00019315,2]
[364136098,1749015037848,-445.66817065,0.00019315,2]
[364136100,1749015037858,-430.0,0.00019315,2]
[364136103,1749015037870,-734.9081318,0.00019342,2]
[364136105,1749015037879,-364.3782178,0.00019342,2]
[364136107,1749015037892,-800.0,0.00019385,2]
[364136109,1749015037901,-244.73574122,0.00019482,2]
[364136111,1749015037911,-565.64079885,0.00019521,2]
[364136113,1749015037920,-423.69433488,0.00019575,2]
[364136115,1749015037930,-70.49045773,0.00019575,2]
[364136117,1749015037945,-89.50954227,0.00019575,2]
[364136119,1749015037954,-160.0,0.00019577,2]
[364136121,1749015037967,-313.27808883,0.00019577,2]
[364136124,1749015037979,-529.28441117,0.00019577,2]
[364136126,1749015037988,-212.90465545,0.00019577,2]
[364136128,1749015037998,-160.0,0.00019577,2]
[364136130,1749015038006,-229.45591648,0.00019577,2]
[364136132,1749015038016,-440.0,0.00019587,2]
[364136134,1749015038025,-440.0,0.00019588,2]
[364136136,1749015038034,-472.23,0.00019588,2]
[364136138,1749015038044,-440.0,0.00019588,2]
[364136140,1749015038054,-440.0,0.00019588,2]
[364136142,1749015038063,-440.0,0.00019588,2]
[364136144,1749015038072,-440.0,0.00019588,2]
[364136146,1749015038082,-430.0,0.00019588,2]
[364136148,1749015038091,-283.94283055,0.00019588,2]
[364136150,1749015038103,-216.05716945,0.00019588,2]
[364136152,1749015038112,-440.0,0.00019588,2]
[364136154,1749015038125,-440.0,0.00019589,2]
[364136156,1749015038135,-171.82,0.00019589,2]
[364136158,1749015038144,-430.0,0.0001961,2]
[364136160,1749015038154,-430.0,0.0001961,2]
[364136162,1749015038163,-422.42629739,0.0001961,2]
[364136164,1749015038173,-430.0,0.0001961,2]
[364136166,1749015038183,-430.0,0.0001961,2]
[364136168,1749015038192,-430.0,0.0001961,2]
[364136170,1749015038202,-430.0,0.0001961,2]
[364136172,1749015038211,-462.51408139,0.0001961,2]
[364136174,1749015038220,-430.0,0.0001961,2]
[364136176,1749015038230,-504.49169705,0.0001961,2]
[364136178,1749015038240,-440.0,0.0001961,2]
[364136180,1749015038249,-440.0,0.0001961,2]
[364136182,1749015038258,-414.81838807,0.0001961,2]
[364136184,1749015038268,-440.0,0.0001961,2]
[364136186,1749015038278,-380.0,0.00019611,2]
[364136188,1749015038288,-440.0,0.00019611,2]
[364136190,1749015038298,-156.59931809,0.00019611,2]